bitfinex-derivatives/quotes_ETHF0:USTF0_20260305
["timestamp","ask_amount","ask_price","bid_price","bid_amount"]
[1772730220139,1.14881486,2092.6,2091.7,0.5971404]
[1772730220379,0.57440743,2092.6,2091.7,0.5971404]
[1772730220540,0.00552028,2093.6,2092.6,0.59101544]
[1772730221643,0.35678338,2093.6,2092.6,0.59101544]
[1772730222138,0.57440743,2093.3,2092.6,0.59101544]
[1772730222341,0.34144017,2093.3,2092.0,0.59101544]
[1772730222743,0.34144017,2093.1,2092.0,0.59101544]
[1772730223139,0.57440743,2092.8,2092.0,0.59101544]
[1772730223544,0.34144017,2092.9,2091.7,0.5971404]
[1772730223743,0.34144017,2092.7,2091.7,0.5971404]
[1772730224149,0.57440743,2092.5,2091.7,0.00612496]
[1772730224344,6.11295,2093.4,2091.7,0.00612496]
[1772730224542,0.2388,2093.2,2091.7,0.00612496]
[1772730224744,6.265,2093.3,2091.7,4.22644762]
[1772730224948,6.265,2093.3,2091.8,0.23896]
[1772730225244,6.83940743,2093.3,2091.8,0.23896]
[1772730225446,6.265,2093.3,2091.8,0.23896]
[1772730225944,0.00552028,2093.6,2091.8,0.23896]
[1772730226151,0.57440743,2093.5,2091.8,0.23896]
[1772730226346,0.23877,2093.5,2091.8,0.23896]
[1772730226551,6.11284,2093.5,2091.7,0.00612496]
[1772730226747,0.23883,2093.0,2091.7,0.00612496]
[1772730226943,0.23883,2093.0,2090.4,5.88246]
[1772730226944,0.23891,2092.3,2090.6,0.2391]
[1772730227148,6.264,2092.2,2090.6,0.2391]
[1772730227646,6.83840743,2092.2,2090.6,0.2391]
[1772730228040,6.50291,2092.3,2090.6,0.24325104]
[1772730228246,6.50291,2092.3,2090.6,0.00415104]
[1772730228747,0.57440743,2092.0,2090.6,0.00415104]
[1772730228944,0.00503334,2092.0,2090.7,4.22032266]
[1772730229249,0.00503334,2092.0,2090.7,10.34107266]
[1772730230253,6.264,2092.9,2091.2,0.23903]
[1772730230447,6.264,2093.3,2091.4,6.11869]
[1772730230646,6.264,2094.0,2091.9,6.11727]
[1772730230951,0.23872,2093.9,2091.9,6.11718]
[1772730231251,0.00525358,2093.9,2092.3,0.2389]
[1772730231450,0.00525358,2093.9,2092.3,0.24449574]
[1772730231650,0.57966101,2093.9,2092.3,0.24449574]
[1772730231852,0.00525358,2093.9,2092.3,0.00559574]
[1772730232048,0.57440743,2093.7,2092.3,0.00559574]
[1772730232550,0.57440743,2093.5,2092.3,0.00559574]
[1772730232745,0.23875,2093.7,2092.3,0.00559574]
[1772730233251,0.23876,2093.6,2092.3,0.00559574]
[1772730233846,6.11234,2093.6,2092.3,0.00559574]
[1772730234053,0.23876,2093.6,2092.3,0.00559574]
[1772730234654,6.264,2093.8,2092.3,0.00559574]
[1772730235050,0.57440743,2093.7,2092.3,0.00559574]
[1772730235249,6.264,2093.8,2092.3,0.00559574]
[1772730235949,6.50275,2093.8,2092.3,0.00559574]
[1772730236150,0.57440743,2093.2,2092.3,0.00559574]
[1772730236549,5.87806358,2093.9,2092.3,0.00559574]
[1772730236550,0.57440743,2092.9,2092.3,0.00559574]
[1772730236747,0.2388,2093.3,2092.3,0.00559574]
[1772730236748,6.263,2093.1,2092.3,0.00559574]
[1772730237156,0.57440743,2092.7,2092.3,0.00559574]
[1772730237452,0.00525358,2093.9,2092.3,0.00559574]
[1772730237853,0.23874,2093.8,2092.3,0.00559574]
[1772730239049,6.263,2093.7,2092.3,0.00559574]
[1772730240960,0.23876,2093.6,2092.3,0.00559574]
[1772730241965,0.00525358,2093.9,2092.3,0.00559574]
[1772730242157,6.262,2093.8,2092.3,0.00559574]
[1772730242358,5.87357,2093.6,2092.3,0.00559574]
[1772730242552,0.2388,2093.3,2091.6,44.53223954]
[1772730243056,5.87445,2093.3,2091.6,44.53223954]
[1772730243260,0.23884,2092.9,2091.6,40.8]
[1772730243462,0.23886,2092.7,2091.3,3.73223954]
[1772730243663,6.262,2092.6,2091.3,0.00534278]
[1772730244065,0.23881,2093.2,2091.4,0.23901]
[1772730244359,6.262,2093.1,2091.4,0.23901]
[1772730245363,0.23883,2093.0,2091.3,0.00534278]
[1772730245563,6.262,2093.1,2091.3,0.00534278]
[1772730245564,0.23888,2092.5,2091.3,0.00534278]
[1772730245862,6.262,2092.4,2091.3,0.00534278]
[1772730246169,6.26671764,2092.4,2091.3,0.00534278]
[1772730246764,0.00471764,2092.4,2091.3,0.00534278]
[1772730249167,0.00471764,2092.4,2091.6,3.01629766]
[1772730249376,0.23879,2093.3,2091.9,0.23895]
[1772730250066,0.23884,2092.9,2091.5,3.01629766]
[1772730250267,6.263,2092.8,2091.5,3.01629766]
[1772730250575,0.00483263,2092.9,2092.1,3.01629766]
[1772730250864,0.00483263,2092.9,2091.8,3.25525766]
[1772730251264,0.00483263,2092.9,2091.7,3.73223954]
[1772730251471,0.00483263,2092.9,2091.4,3.73223954]
[1772730251669,0.23885,2092.8,2091.3,6.99288998]
[1772730252170,0.23885,2092.8,2091.4,3.73223954]
[1772730252562,0.23885,2092.8,2091.3,3.97659232]
[1772730252768,0.23885,2092.8,2091.4,3.73223954]
[1772730252969,0.23885,2092.8,2091.3,0.00534278]
[1772730254073,6.50185,2092.8,2091.3,0.00534278]
[1772730254771,6.50185,2092.8,2091.3,0.24435278]
[1772730255769,0.2389,2092.4,2091.3,0.00534278]
[1772730259272,0.00483263,2092.9,2091.4,0.23901]
[1772730260576,0.23885,2092.8,2091.4,0.23901]
[1772730262071,0.23885,2092.8,2091.3,0.00534278]
[1772730263572,4.22766712,2092.8,2091.3,0.00534278]
[1772730264173,0.23891,2092.4,2091.3,0.00534278]
[1772730264373,6.263,2092.3,2091.3,0.00534278]
[1772730265074,3.98881712,2092.7,2091.3,0.00534278]
[1772730265268,3.98881712,2092.8,2091.3,0.24436278]
[1772730265469,6.50668263,2092.9,2091.3,0.24436278]
[1772730266179,6.26783263,2092.9,2091.7,0.23897]
[1772730266374,0.00483263,2092.9,2091.7,0.23897]
[1772730267278,0.00483263,2092.9,2091.4,3.88295567]
[1772730267480,0.23885,2092.8,2091.3,4.12731845]
[1772730267875,0.00483263,2092.9,2091.3,4.12731845]
[1772730268275,0.23885,2092.8,2091.3,4.12731845]
[1772730268681,0.23885,2092.8,2091.3,3.88829845]
[1772730268881,0.23885,2092.8,2091.3,0.00534278]
[1772730269672,0.23885,2092.8,2091.3,3.88829845]
[1772730270080,0.23885,2092.8,2091.3,0.00534278]
[1772730270277,0.23885,2092.8,2091.3,3.88829845]
[1772730272079,4.22766712,2092.8,2091.4,3.88295567]
[1772730272979,4.22766712,2092.8,2091.3,3.88829845]
[1772730273183,3.98881712,2092.7,2091.3,3.88829845]
[1772730273686,6.50187,2092.6,2091.3,3.88829845]
[1772730273888,6.50187,2092.6,2091.3,0.00534278]
[1772730273889,0.2389,2092.4,2091.3,0.00534278]
[1772730274390,3.98881712,2092.5,2091.3,0.00534278]
[1772730274589,3.98881712,2092.6,2091.3,0.24435278]
[1772730274787,6.263,2092.5,2091.3,0.24435278]
[1772730275695,10.25181712,2092.5,2091.3,0.00534278]
[1772730277489,10.49070712,2092.5,2091.3,0.00534278]
[1772730277689,0.23893,2092.2,2091.3,0.00534278]
[1772730280288,3.98881712,2092.4,2091.3,0.00534278]
[1772730280492,6.264,2092.3,2091.3,0.00534278]
[1772730280894,6.264,2092.3,2091.3,0.24436278]
[1772730285804,6.264,2092.3,2091.3,0.00534278]
[1772730287202,6.264,2092.3,2091.3,0.24436278]
[1772730287699,4.22768712,2092.6,2091.3,0.24436278]
[1772730287903,6.264,2092.5,2091.3,4.12731845]
[1772730288299,6.264,2092.5,2091.4,3.88295567]
[1772730289303,6.264,2092.5,2091.6,3.88295567]
[1772730290606,6.264,2092.7,2091.6,3.88295567]
[1772730291200,6.264,2092.7,2092.1,0.23893]
[1772730291400,0.00483263,2092.9,2091.9,3.88295567]
[1772730291703,0.00483263,2092.9,2092.0,0.23894]
[1772730292304,0.00483263,2092.9,2091.8,3.88295567]
[1772730292906,6.26883263,2092.9,2091.8,3.88295567]
[1772730293902,6.26883263,2092.9,2091.7,3.88295567]
[1772730294108,6.26883263,2092.9,2091.6,3.88295567]
[1772730294516,0.23885,2092.8,2091.5,3.88295567]
[1772730294710,4.22766712,2092.8,2091.4,3.88295567]
[1772730297018,3.98881712,2092.7,2091.3,3.88829845]
[1772730297908,0.23887,2092.6,2091.3,3.88829845]
[1772730298113,0.23887,2092.6,2091.3,0.00534278]
[1772730298617,4.22768712,2092.6,2091.3,0.00534278]
[1772730300210,0.2389,2092.4,2091.3,0.00534278]
[1772730300418,6.263,2092.3,2091.3,0.00534278]
[1772730301113,3.98881712,2092.5,2091.3,0.00534278]
[1772730301319,6.263,2092.4,2091.4,0.23901]
[1772730302017,6.263,2092.4,2091.3,3.88829845]
[1772730302018,6.263,2092.8,2091.5,3.88295567]
[1772730302818,6.263,2092.8,2091.6,0.23899]
[1772730303618,6.263,2092.8,2091.6,4.12194567]
[1772730303822,6.263,2092.8,2091.7,3.88295567]
[1772730304020,6.263,2092.8,2091.8,3.88295567]
[1772730304214,6.263,2092.8,2091.7,3.88295567]
[1772730304519,6.263,2092.8,2091.8,3.88295567]
[1772730304925,6.263,2092.8,2091.6,3.88295567]
[1772730305521,6.263,2092.8,2091.5,4.12194567]
[1772730306021,6.263,2092.8,2091.6,3.88295567]
[1772730306423,6.263,2092.8,2091.5,4.12194567]
[1772730306920,0.00483263,2092.9,2092.1,0.23892]
[1772730307121,0.00483263,2092.9,2091.8,3.88295567]
[1772730307324,6.263,2092.8,2091.6,4.12193567]
[1772730308123,5.87815,2092.0,2091.0,3.9002761]
[1772730308430,0.23899,2091.7,2089.9,0.23917]
[1772730309024,0.23899,2091.7,2090.0,2.92463992]
[1772730309225,3.99969669,2091.4,2090.0,2.92808716]
[1772730309425,6.263,2091.3,2090.0,2.92808716]
[1772730309626,5.86919953,2091.2,2090.0,2.92808716]
[1772730310326,6.263,2091.2,2090.1,0.23916]
[1772730310927,0.0047691,2091.4,2090.2,2.92463992]
[1772730311124,6.264,2091.1,2090.2,2.92463992]
[1772730311328,6.264,2091.1,2090.3,2.3896]
[1772730311527,6.264,2091.1,2090.2,2.92463992]
[1772730311730,6.264,2091.1,2090.4,2.3896]
[1772730311928,6.264,2091.1,2090.2,2.92463992]
[1772730312326,6.264,2091.1,2090.2,5.31423992]
[1772730312526,5.85527791,2091.0,2090.2,2.92463992]
[1772730313229,6.264,2091.1,2090.2,2.92463992]
[1772730314026,0.23906,2091.0,2090.0,0.00344724]
[1772730314328,6.08823075,2091.0,2090.1,2.92463992]
[1772730315530,6.08823075,2091.0,2090.0,0.00344724]
[1772730315724,6.08823075,2091.0,2090.0,2.92808716]
[1772730316120,12.11417075,2090.9,2090.0,2.92808716]
[1772730316324,6.07476888,2090.8,2090.0,2.92808716]
[1772730316526,6.07476888,2090.8,2090.0,0.00344724]
[1772730316830,6.07476888,2090.8,2089.1,40.8]
[1772730317026,0.2391,2090.6,2089.2,2.92463992]
[1772730317330,6.266,2090.5,2088.7,0.23932]
[1772730317530,5.94198506,2090.4,2088.8,40.8]
[1772730317729,5.94198506,2090.4,2088.8,43.72463992]
[1772730318029,5.94198506,2090.4,2088.9,2.3896]
[1772730318425,6.266,2090.3,2089.0,2.3896]
[1772730318625,6.266,2090.3,2088.8,43.72890328]
[1772730319029,6.266,2090.3,2089.0,2.3896]
[1772730319331,6.266,2090.3,2088.8,43.72890328]
[1772730319531,6.266,2090.3,2088.8,2.92890328]
[1772730319727,0.23916,2090.1,2088.8,2.92890328]
[1772730319927,10.17015891,2090.1,2088.8,2.92890328]
[1772730320127,12.19830222,2090.0,2088.8,2.92890328]
[1772730320326,6.267,2090.0,2088.8,2.92890328]
[1772730320528,0.23915,2090.2,2088.8,2.92890328]
[1772730320725,6.267,2090.1,2088.8,2.92890328]
[1772730320929,6.267,2090.0,2088.9,0.2393]
[1772730321130,4.23877669,2090.8,2089.0,2.3896]
[1772730321331,5.92088751,2090.7,2089.1,0.23927]
[1772730321627,6.267,2090.7,2089.1,2.62887]
[1772730321834,6.267,2091.2,2089.5,0.23922]
[1772730322129,5.91982856,2091.1,2089.5,0.23922]
[1772730322736,0.2391,2090.7,2089.6,2.92463992]
[1772730322937,6.268,2090.6,2089.1,2.92463992]
[1772730323331,6.268,2090.6,2089.3,2.3896]
[1772730323833,6.268,2090.6,2089.4,2.92463992]
[1772730324428,6.268,2090.6,2089.5,2.3896]
[1772730324628,6.268,2090.6,2089.4,2.92463992]
[1772730324830,6.268,2090.6,2089.5,2.3896]
[1772730325033,6.268,2090.6,2089.4,2.92463992]
[1772730325436,6.268,2090.6,2089.5,2.3896]
[1772730325838,6.268,2090.6,2089.6,2.3896]
[1772730326137,6.268,2090.6,2089.4,2.92463992]
[1772730326337,6.268,2090.6,2089.5,2.3896]
[1772730326737,6.268,2090.6,2089.4,2.92463992]
[1772730326936,0.23902,2091.3,2089.4,3.16386992]
[1772730327139,6.268,2091.2,2089.4,3.16386992]
[1772730327439,6.16149792,2091.1,2089.4,3.16386992]
[1772730327840,6.16149792,2091.1,2089.4,2.92463992]
[1772730328338,6.16149792,2091.1,2089.5,2.3896]
[1772730328539,12.19145792,2091.0,2089.4,2.92463992]
[1772730328837,6.16321244,2090.9,2089.4,5.31423992]
[1772730329137,6.16321244,2090.9,2089.4,2.92463992]
[1772730329337,6.16321244,2090.9,2089.4,5.31423992]
[1772730329640,3.02096338,2090.8,2089.4,2.92463992]
[1772730329938,0.23907,2090.9,2089.4,5.31423992]
[1772730330136,6.16436492,2090.9,2089.4,2.92463992]
[1772730330338,6.16436492,2090.9,2089.4,5.31423992]
[1772730331243,12.19429492,2090.8,2089.6,2.3896]
[1772730331443,6.269,2090.8,2089.4,2.92463992]
[1772730331845,6.269,2090.8,2089.6,2.3896]
[1772730332143,5.93051079,2090.7,2089.6,2.3896]
[1772730332343,2.09790914,2090.6,2089.7,4.53999549]
[1772730332544,2.09790914,2090.6,2089.7,2.15039549]
[1772730332744,2.09790914,2090.6,2089.8,2.3896]
[1772730333145,2.09790914,2090.6,2089.7,2.15039549]
[1772730333345,8.36690914,2090.5,2089.9,5.31423992]
[1772730333545,8.36690914,2090.5,2089.9,2.92463992]
[1772730333839,2.09790914,2090.4,2089.9,2.92463992]
[1772730334046,6.269,2090.5,2089.9,5.07503541]
[1772730334239,6.269,2090.5,2090.2,2.3896]
[1772730334646,8.36690914,2090.5,2090.2,2.92463992]
[1772730334840,8.36690914,2090.5,2089.7,2.15039549]
[1772730335039,6.269,2090.5,2089.7,2.15039549]
[1772730335550,2.09790914,2090.4,2089.7,2.15039549]
[1772730336952,2.09790914,2090.4,2089.4,2.15039549]
[1772730337251,5.97145646,2090.3,2089.4,2.15039549]
[1772730337447,7.2091853,2090.8,2089.4,2.15039549]
[1772730337448,2.09790914,2090.6,2089.4,2.15039549]
[1772730337643,3.95508642,2090.8,2089.4,2.15039549]
[1772730337644,8.00960228,2090.5,2089.4,2.15039549]
[1772730337848,2.09790914,2090.5,2089.4,2.15039549]
[1772730338053,12.18040662,2090.4,2089.4,2.15039549]
[1772730338243,5.91140662,2090.3,2089.4,2.15039549]
[1772730339053,6.269,2090.8,2089.7,2.15039549]
[1772730339252,5.92789654,2090.7,2089.7,2.15039549]
[1772730341147,3.95508642,2091.0,2090.0,2.15039549]
[1772730341347,6.269,2091.0,2090.0,2.15039549]
[1772730342853,6.269,2091.0,2090.3,2.15039549]
[1772730343051,3.95985552,2091.4,2090.4,0.23912]
[1772730343354,0.0047691,2091.4,2090.6,2.15039549]
[1772730344552,2.10267824,2091.4,2090.3,2.15652112]
[1772730344756,2.10267824,2091.4,2090.3,0.00612563]
[1772730344757,2.09790914,2091.2,2090.3,0.00612563]
[1772730345054,2.09790914,2091.0,2090.3,0.00612563]
[1772730345556,2.09790914,2091.0,2090.3,2.15652112]
[1772730345753,2.09790914,2090.8,2090.3,0.00612563]
[1772730345948,2.09790914,2090.8,2089.5,2.15039549]
[1772730346559,2.09790914,2090.8,2089.7,2.15039549]
[1772730346756,6.268,2090.7,2089.8,2.15039549]
[1772730346956,6.268,2090.7,2089.8,2.15651107]
[1772730347754,2.09790914,2091.1,2090.0,2.15039549]
[1772730347960,2.33697914,2090.9,2089.8,2.15651107]
[1772730348161,2.09790914,2090.8,2089.8,2.15651107]
[1772730348662,2.09790914,2090.7,2089.8,2.15651107]
[1772730349064,2.09790914,2090.9,2089.8,2.39570107]
[1772730349265,8.36590914,2090.8,2089.8,2.39570107]
[1772730349561,6.268,2090.7,2089.8,2.39570107]
[1772730350460,2.09790914,2090.8,2089.8,2.39570107]
[1772730350659,6.268,2090.7,2089.8,2.39570107]
[1772730352165,6.268,2090.7,2089.8,2.15651107]
[1772730352764,2.09790914,2090.6,2089.8,2.15651107]
[1772730353763,6.05299556,2090.9,2089.8,2.15651107]
[1772730353961,6.268,2090.6,2089.8,2.15651107]
[1772730354361,6.05299556,2090.9,2089.9,0.23918]
[1772730354567,11.96556702,2090.8,2090.0,2.15039549]
[1772730354764,5.69756702,2090.7,2090.0,2.15039549]
[1772730355572,7.79547616,2090.7,2090.0,2.15039549]
[1772730355870,5.69756702,2090.6,2090.0,2.15039549]
[1772730356365,6.05776466,2091.4,2090.2,2.15039549]
[1772730356565,5.6972811,2091.3,2090.3,0.23914]
[1772730356759,11.9652811,2091.3,2090.4,2.15039549]
[1772730356964,5.6972811,2091.2,2090.4,2.15039549]
[1772730357167,2.10267824,2091.4,2090.4,2.15039549]
[1772730357168,6.268,2091.1,2090.4,2.15039549]
[1772730359872,2.10267824,2091.4,2090.4,2.15039549]
[1772730360265,2.56280263,2091.2,2090.4,2.15039549]
[1772730360472,0.0047691,2091.4,2090.6,2.603483]
[1772730361266,0.0047691,2091.4,2090.8,2.603483]
[1772730361464,2.56280263,2091.8,2090.8,2.603483]
[1772730362473,2.56661901,2091.8,2090.8,2.603483]
[1772730362977,2.54919801,2091.8,2090.8,2.603483]
[1772730363878,0.00381638,2091.8,2090.8,2.603483]
[1772730364068,0.00381638,2091.8,2090.7,0.23909]
[1772730364069,0.00381638,2091.8,2091.0,2.603483]
[1772730364274,0.00381638,2091.8,2090.6,3.02096338]
[1772730364275,2.44239259,2091.8,2091.2,2.603483]
[1772730364473,0.00381638,2091.8,2091.2,2.603483]
[1772730364677,6.267,2092.1,2091.2,2.603483]
[1772730365175,2.38598125,2092.0,2091.2,2.603483]
[1772730365580,2.38598125,2092.2,2091.2,2.603483]
[1772730365879,0.00362057,2092.0,2091.2,2.603483]
[1772730366679,2.32964116,2091.9,2091.2,2.603483]
[1772730367878,2.32964116,2091.9,2091.0,2.603483]
[1772730368680,6.266,2091.8,2091.0,2.603483]
[1772730368882,2.32964116,2091.9,2091.0,2.603483]
[1772730368883,8.59564116,2091.9,2091.0,2.603483]
[1772730369081,0.00362057,2092.0,2091.2,2.603483]
[1772730370282,2.12319673,2092.0,2090.7,2.603483]
[1772730370681,6.266,2091.9,2090.9,2.603483]
[1772730371382,2.12319673,2092.0,2090.9,2.603483]
[1772730371582,2.07163478,2091.9,2090.9,2.603483]
[1772730371980,2.07163478,2091.7,2090.7,2.603483]
[1772730372177,2.03989081,2091.5,2090.1,2.603483]
[1772730372382,2.03989081,2091.3,2090.1,2.603483]
[1772730372687,2.03989081,2091.1,2090.1,2.603483]
[1772730372878,2.03989081,2091.3,2090.1,2.603483]
[1772730373078,6.266,2091.1,2090.1,2.603483]
[1772730373580,6.266,2091.1,2090.3,2.603483]
[1772730373581,8.25939384,2091.1,2090.3,2.603483]
[1772730373884,1.99339384,2091.0,2090.3,2.603483]
[1772730374679,6.266,2091.0,2090.3,2.603483]
[1772730376279,8.16410152,2091.0,2090.3,2.603483]
[1772730377282,6.266,2091.3,2090.3,2.603483]
[1772730377480,1.85419665,2091.2,2090.3,2.603483]
[1772730377680,1.85419665,2091.2,2090.1,2.603483]
[1772730378586,1.72688818,2091.0,2090.1,2.603483]
[1772730380084,7.85813648,2090.9,2090.1,2.603483]
[1772730380284,1.59213648,2090.8,2090.1,2.603483]
[1772730382786,1.59213648,2090.8,2089.9,2.603483]
[1772730384490,1.43197608,2090.6,2089.9,2.603483]
[1772730385188,1.39452952,2090.4,2089.8,0.00611558]
[1772730385388,7.66152952,2090.3,2089.8,2.60959858]
[1772730385789,6.267,2090.3,2089.8,2.60959858]
[1772730386383,0.00483808,2090.4,2089.8,2.60959858]
[1772730387794,1.325128,2090.4,2089.8,2.60959858]
[1772730388692,5.22547334,2091.0,2090.0,2.09932656]
[1772730388884,13.10058148,2090.9,2090.0,2.09932656]
[1772730389089,7.50322749,2090.9,2090.0,2.09932656]
[1772730389284,1.20131889,2091.1,2090.0,2.09932656]
[1772730389484,6.268,2091.0,2090.0,2.09932656]
[1772730389786,6.268,2091.3,2090.2,2.09932656]
[1772730389992,1.20158854,2091.2,2090.4,2.09932656]
[1772730390991,1.20158854,2091.2,2089.9,1.90975061]
[1772730391384,1.13181892,2091.0,2089.9,1.90975061]
[1772730391793,1.13181892,2090.8,2089.9,1.90975061]
[1772730391989,1.13181892,2090.6,2089.8,0.00611558]
[1772730392493,1.13181892,2090.6,2089.8,1.91586619]
[1772730393794,6.268,2090.5,2089.8,1.91586619]
[1772730394395,7.2590383,2090.5,2089.8,1.91586619]
[1772730395094,0.9910383,2090.4,2089.8,1.91586619]
[1772730395789,0.9910383,2090.4,2089.8,0.00611558]
[1772730395990,6.268,2090.3,2089.8,1.91586619]
[1772730396694,0.9910383,2090.4,2089.8,1.91586619]
[1772730396994,6.268,2090.3,2089.8,1.91586619]
[1772730397294,6.268,2090.4,2089.8,1.91586619]
[1772730397490,0.92754351,2090.7,2089.8,1.91586619]
[1772730397691,7.16497762,2090.5,2089.8,1.91586619]
[1772730398299,6.268,2090.5,2089.8,1.91586619]
[1772730398701,4.8573003,2090.9,2089.8,1.91586619]
[1772730398901,11.87289235,2090.8,2089.8,1.91586619]
[1772730399101,5.60489235,2090.7,2089.8,1.91586619]
[1772730399699,0.83733153,2090.6,2089.8,1.91586619]
[1772730400100,5.61349245,2090.5,2089.8,1.91586619]
[1772730400300,10.25824585,2090.8,2089.8,1.91586619]
[1772730400301,0.79622079,2090.3,2089.8,0.00611558]
[1772730400503,7.06422079,2090.2,2089.6,1.90975061]
[1772730400704,1.06338016,2090.0,2089.6,1.64259124]
[1772730400900,7.33138016,2090.0,2088.8,1.90975061]
[1772730401098,6.268,2090.0,2089.0,1.90975061]
[1772730401301,6.268,2090.0,2089.1,1.90975061]
[1772730401606,6.268,2090.2,2089.3,1.90975061]
[1772730402206,6.65663866,2090.1,2089.3,1.90975061]
[1772730402400,1.03752216,2090.3,2089.3,1.90975061]
[1772730402606,11.88837417,2090.2,2089.3,1.90975061]
[1772730402801,6.65689633,2090.1,2089.3,1.90975061]
[1772730403003,1.03752216,2090.1,2089.3,1.90975061]
[1772730403204,1.00922265,2089.9,2089.1,1.91502123]
[1772730403401,1.00922265,2089.7,2088.9,1.90975061]
[1772730403603,6.62823154,2089.6,2088.9,1.90975061]
[1772730403904,6.62823154,2089.6,2088.6,1.90975061]
[1772730403905,1.00922265,2089.4,2088.6,1.90975061]
[1772730404105,1.62004013,2089.1,2088.1,1.90975061]
[1772730404408,1.62004013,2088.9,2088.1,1.91585367]
[1772730404608,1.62004013,2088.7,2088.1,0.00610306]
[1772730404810,1.62004013,2088.7,2087.8,1.90975061]
[1772730405107,1.5866425,2088.5,2087.6,1.90975061]
[1772730405307,7.8556425,2088.4,2087.6,1.90975061]
[1772730405508,7.8556425,2088.3,2087.6,1.90975061]
[1772730405709,6.269,2088.2,2087.6,1.91526482]
[1772730406399,6.269,2088.2,2087.6,0.00458225]
[1772730406400,1.50053865,2088.1,2087.6,0.00458225]
[1772730406598,1.50053865,2088.1,2087.3,1.90975061]
[1772730407512,1.50053865,2088.1,2087.3,1.9156251]
[1772730408009,6.27,2088.0,2087.3,1.9156251]
[1772730408605,7.50479852,2088.0,2087.3,1.9156251]
[1772730408808,6.27,2087.9,2087.3,1.9156251]
[1772730409012,6.271,2087.9,2087.3,1.9156251]
[1772730409312,6.271,2088.1,2087.3,1.9156251]
[1772730409506,0.97788865,2088.0,2087.3,1.9156251]
[1772730410310,7.24888865,2088.0,2087.3,1.9156251]
[1772730411011,0.71812673,2087.9,2087.3,1.9156251]
[1772730411512,0.71812673,2087.9,2087.3,0.00587449]
[1772730412808,0.2350891,2088.1,2087.3,1.9156251]
[1772730413009,0.2350891,2088.4,2087.3,1.9156251]
[1772730413217,6.273,2088.3,2087.3,1.9156251]
[1772730414512,7.2512615,2089.0,2087.3,1.9156251]
[1772730414513,6.273,2088.2,2087.3,1.9156251]
[1772730415411,3.26101565,2089.0,2087.3,1.9156251]
[1772730415610,11.82901633,2088.9,2087.3,1.9156251]
[1772730415807,0.23932,2088.7,2087.3,1.9156251]
[1772730416011,5.79533633,2088.7,2087.3,1.9156251]
[1772730416517,0.23932,2088.7,2087.3,1.9156251]
[1772730416818,6.274,2088.6,2087.3,1.9156251]
[1772730417115,0.23932,2088.7,2087.3,1.9156251]
[1772730417116,6.274,2088.5,2087.3,1.9156251]
[1772730417415,3.02172565,2089.0,2087.3,2.1550951]
[1772730417416,6.274,2088.4,2087.3,2.1550951]
[1772730417616,6.274,2088.3,2087.3,1.9156251]
[1772730417816,6.274,2088.2,2087.3,1.9156251]
[1772730418309,6.51338,2088.2,2087.1,1.90975061]
[1772730418516,0.87294886,2088.0,2086.7,1.52066791]
[1772730419217,0.87294886,2087.8,2086.7,1.52481359]
[1772730420218,0.5411662,2087.6,2086.7,1.52481359]
[1772730420419,0.5411662,2087.4,2086.7,1.52481359]
[1772730420714,0.5411662,2087.4,2086.3,0.57728706]
[1772730420916,0.5411662,2087.3,2085.9,0.57728706]
[1772730421122,0.5411662,2087.1,2085.9,0.57728706]
[1772730421412,0.23949,2087.2,2085.2,0.57728706]
[1772730421413,0.5411662,2086.5,2085.2,0.57728706]
[1772730421617,0.5411662,2086.3,2085.2,0.58128249]
[1772730421817,0.5411662,2086.1,2085.2,0.58128249]
[1772730422020,0.5411662,2086.0,2085.2,0.58128249]
[1772730422214,0.00521213,2086.1,2085.2,0.58128249]
[1772730422616,6.275,2086.4,2085.4,0.57728706]
[1772730422809,0.5411662,2086.4,2085.3,0.23971]
[1772730423016,0.5411662,2086.4,2085.2,0.00399543]
[1772730423017,0.5411662,2086.4,2085.4,0.57728706]
[1772730423315,0.23959,2086.3,2085.2,0.58128249]
[1772730423517,0.5411662,2086.2,2085.2,0.00399543]
[1772730424118,6.8171662,2086.2,2085.2,0.58128249]
[1772730424616,0.00561628,2086.3,2085.2,0.82099249]
[1772730424817,0.00561628,2086.3,2085.3,0.57728706]
[1772730425022,0.54678248,2086.3,2085.3,0.57728706]
[1772730427017,0.54678248,2086.3,2085.2,0.00399543]
[1772730428325,0.5411662,2086.1,2085.2,0.00399543]
[1772730428524,0.5411662,2085.9,2085.2,0.00399543]
[1772730429521,0.5411662,2085.9,2084.7,0.57728706]
[1772730429728,0.5411662,2085.9,2084.2,0.57728706]
[1772730430117,0.5411662,2085.9,2084.3,0.57728706]
[1772730430420,0.5411662,2085.7,2084.3,0.58202582]
[1772730432517,0.5411662,2085.5,2084.3,0.00473876]
[1772730432717,0.5411662,2085.3,2084.3,0.00473876]
[1772730433218,0.23972,2085.2,2083.9,0.57728706]
[1772730433419,0.5411662,2085.1,2083.9,0.57728706]
[1772730433819,0.5411662,2084.9,2083.9,0.57728706]
[1772730434027,0.5411662,2084.8,2083.9,0.58225158]
[1772730434221,0.00429288,2084.8,2083.9,0.58225158]
[1772730434815,0.54545908,2084.8,2083.9,0.58225158]
[1772730435222,0.00429288,2084.8,2083.9,0.58225158]
[1772730435427,0.54545908,2084.8,2084.1,0.57728706]
[1772730435824,0.54545908,2084.8,2083.9,0.58225158]
[1772730436329,6.82745908,2084.8,2083.9,0.58225158]
[1772730436720,0.5411662,2084.7,2083.9,0.00496452]
[1772730438926,6.28629288,2084.8,2082.9,3.26170565]
[1772730438927,0.5411662,2084.5,2083.2,0.57728706]
[1772730439122,6.8231662,2084.4,2083.2,0.57728706]
[1772730439428,0.5411662,2084.3,2083.2,0.57728706]
[1772730439925,0.5411662,2084.3,2083.2,0.58325957]
[1772730440228,0.00429288,2084.8,2083.4,0.57728706]
[1772730440229,0.5411662,2084.4,2083.4,0.57728706]
[1772730442222,0.5411662,2084.7,2083.6,0.57728706]
[1772730443328,0.5411662,2084.5,2083.2,0.58325957]
[1772730443529,0.5411662,2084.1,2082.8,0.57728706]
[1772730443732,0.5411662,2083.9,2082.8,0.57728706]
[1772730443929,0.5411662,2083.7,2082.8,0.57728706]
[1772730444528,0.5411662,2083.7,2082.8,0.58224412]
[1772730445331,0.5411662,2083.7,2082.8,0.00495706]
[1772730445522,0.5411662,2083.6,2082.4,1.44436814]
[1772730445726,0.5411662,2083.6,2082.5,0.57728706]
[1772730446129,6.8241662,2083.8,2082.5,0.57728706]